[Event "Austrian Championship 2022"]
[Site "Vienna"]
[Date "2022.08.15"]
[Round "4.2"]
[White "Ivanyk, Igor"]
[Black "Exler, Veronika"]
[Result "0-1"]
[ECO "B12"]
[WhiteElo "2002"]
[BlackElo "2132"]
[Annotator "TA"]
[PlyCount "52"]
[EventDate "2022.08.12"]
[EventType "swiss"]
[EventCountry "AUT"]
[SourceTitle "playchess.com"]
[Source "ChessBase"]
[SourceQuality "1"]
[TimeControl "40/5400+30:1800+30"]

{[%evp 10,52,28,6,26,28,33,36,70,56,91,77,68,70,79,32,24,41,49,50,55,-33,-22,-17,-11,-182,-182,-483,-420,-447,-417,-716,-696,-697,-703,-1100,-643,-29996,-29989,-29989,-29990,-29990,-29991,-29991,-29992]} 1. e4 {[%emt 0:04:22]} c6 {[%emt 0:00:04]} 2. d4 {[%emt 0:00:08]} d5 {[%emt 0:00:04]} 3. e5 {[%emt 0:00:11]} Bf5 {[%emt 0:00:03]} 4. Nd2 {[%emt 0:00:18]} e6 {[%emt 0:01:29]} 5. Nb3 {[%emt 0:03:53]} Nd7 {[%emt 0:01:17]} 6. Nf3 {[%emt 0:00:07]} Ne7 {[%emt 0:04:40] B12: Caro-Kann: Advance Variation.} 7. Be2 {[%emt 0:00:10]} Ng6 {[%emt 0:00:35]} 8. O-O {[%emt 0:00:19]} f6 {[%emt 0:00:39][%cal Rf6e5] White is slightly better.} 9. Ne1 $1 {[%emt 0:06:54]} fxe5 {[%emt 0:47:45][%cal Oh7h5] [#]} 10. g4 {[%emt 0:03:16]} e4 {[%emt 0:01:04][%cal Of8d6]} 11. gxf5 {[%emt 0:07:03]} exf5 {[%emt 0:00:06] [#]} 12. Bh5 $146 {[%emt 0:07:30]} ({Better is} 12. f3 $16) ({Predecessor:} 12. f4 Bd6 13. Ng2 Qe7 14. Be3 O-O-O 15. c4 dxc4 16. Na5 Nb6 17. Nxc4 Nd5 18. Qb3 {1-0 (49) Preotu,R (2524)-Margvelashvili,G (2530) Chess.com INT 2019}) 12... Bd6 $14 {[%emt 0:01:55] Strongly threatening ...Qh4.} 13. Ng2 {[%emt 0:00:42] Against Qh4} O-O {[%emt 0:12:44]} 14. Bxg6 {[%emt 0:05:41]} hxg6 {[%emt 0:00:05]} 15. f4 {[%emt 0:08:10]} (15. h4 $14) 15... Kf7 $15 {[%emt 0:00:25][%mdl 1024] Black has compensation.} 16. Bd2 {[%emt 0:03:43][%cal Oc2c4]} Rh8 {[%emt 0:00:10] ...Rh3 is the strong threat.} 17. Be1 $2 {[%emt 0:01:12] [#] This move loses the game for White.} (17. h4 $11 {and White stays safe.}) 17... Rh3 $1 $19 {[%emt 0:01:55]} 18. Nc1 $2 {[%emt 0:13:09]} (18. Bg3 {is more resistant.} Nf6 19. Qe2) 18... Qh8 {[%emt 0:04:26]} 19. Bg3 {[%emt 0:01:55]} Nf6 {[%emt 0:00:04][%cal Oh3g3,Bd7f6,Bf6h5,Bh5g3][%mdl 32] Threatens to win with ...Rxg3!} 20. Ne3 {[%emt 0:06:21]} (20. Qe2 $142 Qh6 21. Kf2) 20... Nh5 {[%emt 0:12:05]} 21. Ne2 {[%emt 0:02:16]} Nxg3 {[%emt 0:00:37]} 22. hxg3 {[%emt 0:01:24]} Qh5 {[%emt 0:00:10] White must now prevent ...Rh2.} 23. g4 {[%emt 0:17:42]} Rh1+ {[%emt 0:04:49] Black mates.} 24. Kf2 {[%emt 0:00:43]} Qh4+ {[%emt 0:00:05]} 25. Ng3 {[%emt 0:00:13]} Rh2+ {[%emt 0:00:24]} 26. Ng2 {[%emt 0:00:13]} Bxf4 {[%emt 0:00:39] Weighted Error Value: White=0.91/Black=0.24 (precise)} 0-1

[Event "Austrian Championship 2022"]
[Site "Vienna"]
[Date "2022.08.15"]
[Round "4.3"]
[White "Schreiner, Peter"]
[Black "Diermair, Andreas"]
[Result "1/2-1/2"]
[ECO "B33"]
[WhiteElo "2416"]
[BlackElo "2452"]
[Annotator "TA"]
[PlyCount "41"]
[EventDate "2022.08.12"]
[EventType "swiss"]
[EventCountry "AUT"]
[SourceTitle "playchess.com"]
[Source "ChessBase"]
[SourceQuality "1"]
[TimeControl "40/5400+30:1800+30"]

{[%evp 23,28,10,13,0,9,11,16]} 1. e4 {[%emt 0:03:54]} c5 {[%emt 0:00:17]} 2. Nf3 {[%emt 0:00:11][%cal Bg1f3,Bf3d4,Bd4b5,Bb5a3,Ba3c2][%mdl 32]} Nc6 {[%emt 0:00:07]} 3. d4 {[%emt 0:00:09]} cxd4 {[%emt 0:00:06]} 4. Nxd4 {[%emt 0:00:04]} Nf6 {[%emt 0:00:20]} 5. Nc3 {[%emt 0:00:08]} e5 {[%emt 0:00:12]} 6. Ndb5 {[%emt 0:00:10]} d6 {[%emt 0:00:08]} 7. Bg5 {[%emt 0:01:13]} a6 {[%emt 0:00:08]} 8. Na3 {[%emt 0:00:06]} b5 {[%emt 0:00:06]} 9. Nd5 {[%emt 0:00:13]} Be7 {[%emt 0:00:09]} 10. Bxf6 {[%emt 0:00:06]} Bxf6 {[%emt 0:00:03]} 11. c4 {[%emt 0:00:12]} b4 {[%emt 0:00:04]} 12. Nc2 {[%emt 0:00:03]} a5 {[%emt 0:00:04] The position is equal.} 13. g3 {[%emt 0:00:06] B33: Sicilian: Pelikan and Sveshnikov Variations.} O-O {[%emt 0:00:05]} 14. Bg2 {[%emt 0:00:03]} Rb8 {[%emt 0:00:10] [#] Not much happened in this game. 14...g6 is a critical line.} {Predecessor:} 15. b3 $146 a4 16. O-O Qa5 17. Qd3 Bg5 18. f4 exf4 19. gxf4 Bh6 20. Nce3 Qc5 21. Kh1 {0-1 (49) Firat,B (2466)-Buksa,N (2419) Chess.com INT 2021} 1/2-1/2

[Event "Austrian Championship 2022"]
[Site "Vienna"]
[Date "2022.08.15"]
[Round "4.3"]
[White "Stadlinger, Lea"]
[Black "Sucher, Johannes"]
[Result "0-1"]
[ECO "B01"]
[WhiteElo "1723"]
[BlackElo "2164"]
[Annotator "TA"]
[PlyCount "50"]
[EventDate "2022.08.12"]
[EventType "swiss"]
[EventCountry "AUT"]
[SourceTitle "playchess.com"]
[Source "ChessBase"]
[SourceQuality "1"]
[TimeControl "40/5400+30:1800+30"]

{[%evp 15,50,62,67,0,13,37,40,41,43,0,16,-42,-33,-29,-29,-26,-22,-68,0,-86,0,-19,16,0,0,-46,-54,-41,-17,-62,-25,-26,-21,-153,-148,-530,-535]} 1. e4 {[%emt 0:00:02]} d5 {[%emt 0:00:33]} 2. exd5 {[%emt 0:00:25]} Nf6 {[%emt 0:00:06]} 3. d4 {[%emt 0:01:28]} Bg4 {[%emt 0:00:16]} 4. Be2 {[%emt 0:00:43]} Bxe2 {[%emt 0:00:18]} 5. Qxe2 {[%emt 0:01:39]} Qxd5 {[%emt 0:00:47]} 6. Nf3 {[%emt 0:01:14]} Nc6 {[%emt 0:00:53]} 7. c4 {[%emt 0:04:39]} Qf5 {[%emt 0:01:10]} 8. O-O {[%emt 0:03:16]} O-O-O {[%emt 0:02:04]} 9. Rd1 {[%emt 0:05:20] B01: Scandinavian Defence.} (9. d5 $14 Nb4 10. a3) 9... e6 {[%emt 0:02:00]} (9... e5 $5) 10. Nc3 {[%emt 0:06:02]} Rg8 {[%emt 0:07:24]} 11. a3 {[%emt 0:06:53] White is slightly better.} g5 {[%emt 0:01:38][%cal Bg7g5,Bg5g4][%mdl 32]} 12. Be3 {[%emt 0:05:34]} (12. d5 $5 exd5 13. cxd5 $14) 12... Ne4 {[%emt 0:24:18]} 13. Qd3 {[%emt 0:12:25]} ({White should play} 13. Nxe4 $11 Qxe4 14. Nd2) 13... Nxc3 $1 $15 {[%emt 0:03:46]} 14. Qxc3 {[%emt 0:02:05]} g4 {[%emt 0:00:52] [#]} 15. Ne1 $146 {[%emt 0:06:08]} ({Predecessor:} 15. Nd2 Bg7 16. Nf1 h5 17. b4 e5 18. d5 e4 19. Qc2 Bxa1 20. Rxa1 Ne5 21. Ng3 {0-1 (35) Acosta,M (2147)-Benedetti,J (2299) Vicente Lopez 2016}) 15... Bg7 {[%emt 0:00:52]} 16. Nc2 {[%emt 0:04:34]} (16. Rd2 $11) 16... Rd7 {[%emt 0:02:25]} ({Black should try} 16... h5 $15) 17. Rd2 {[%emt 0:09:25] [#]} (17. b4 $11) 17... Rgd8 {[%emt 0:00:18] Black is more active.} ({Better is} 17... h5 $1 $17) 18. Rad1 {[%emt 0:00:45]} Qe4 {[%emt 0:11:28]} 19. b4 {[%emt 0:04:03]} Ne7 {[%emt 0:04:26]} 20. Qd3 {[%emt 0:06:39]} (20. Bg5 $11 {is superior.}) 20... Qxd3 {[%emt 0:04:24]} 21. Rxd3 {[%emt 0:00:10]} c6 {[%emt 0:01:14]} 22. R3d2 {[%emt 0:05:17]} b5 {[%emt 0:00:29]} 23. cxb5 {[%emt 0:03:39]} cxb5 {[%emt 0:00:07]} 24. d5 {[%emt 0:00:21]} (24. Bg5 $11) 24... Nxd5 $17 {[%emt 0:03:33]} ({Inferior is} 24... Rxd5 25. Rxd5 Nxd5 26. Bxa7 $15) 25. Bxa7 {[%emt 0:00:42][%mdl 8192] [#]} (25. Nd4 $17 Nxe3 26. fxe3) 25... Rxa7 {[%emt 0:02:45] Weighted Error Value: White=0.79/Black=0.17 (very precise)} 0-1

[Event "Austrian Championship 2022"]
[Site "Vienna"]
[Date "2022.08.15"]
[Round "4.4"]
[White "Hoegl, Emanuel"]
[Black "Geroe, Leonhard"]
[Result "1-0"]
[ECO "D90"]
[WhiteElo "2094"]
[BlackElo "2017"]
[Annotator "NA RC"]
[PlyCount "47"]
[EventDate "2022.08.12"]
[EventType "swiss"]
[EventCountry "AUT"]
[SourceTitle "playchess.com"]
[Source "ChessBase"]
[SourceQuality "1"]
[TimeControl "40/5400+30:1800+30"]

1. d4 {[%emt 0:00:02]} Nf6 {[%emt 0:00:11]} 2. c4 {[%emt 0:00:04]} g6 {[%emt 0:00:14]} 3. Nc3 {[%emt 0:00:07]} d5 {[%emt 0:00:07]} 4. Nf3 {[%emt 0:00:06]} Bg7 {[%emt 0:00:26]} 5. h4 {[%emt 0:00:07]} dxc4 {[%emt 0:02:09]} 6. e4 {[%emt 0:00:09]} c5 {[%emt 0:01:27]} 7. d5 {[%emt 0:00:09]} b5 {[%emt 0:00:23]} 8. h5 {[%emt 0:00:16]} O-O {[%emt 0:03:23]} 9. hxg6 {[%emt 0:01:38]} fxg6 {[%emt 0:00:28]} 10. e5 {[%emt 0:04:29]} Ng4 {[%emt 0:00:44]} 11. d6 {[%emt 0:00:15]} e6 {[%emt 0:00:18]} 12. Rxh7 {[%emt 0:07:49]} Rf5 {[%emt 0:00:08]} 13. Rh3 {[%emt 0:01:13]} Nxe5 {[%emt 0:02:23]} 14. Nxb5 {[%emt 0:03:09]} Qa5+ {[%emt 0:04:05]} 15. Nc3 {[%emt 0:00:06]} Nd3+ {[%emt 0:00:06]} 16. Bxd3 {[%emt 0:01:50]} Bxc3+ {[%emt 0:00:18]} (16... cxd3 $142 17. Qxd3 Nc6) 17. bxc3 {[%emt 0:02:25]} Qxc3+ {[%emt 0:01:06]} 18. Bd2 {[%emt 0:01:13]} (18. Qd2 $18 Qxd2+ 19. Kxd2 cxd3 20. Bb2 (20. Kxd3 Rd5+ 21. Ke4 Rxd6 $14)) 18... Qxd3 {[%emt 0:00:27]} 19. Rc1 {[%emt 0:03:51]} Nd7 {[%emt 0:35:33]} 20. Qa4 {[%emt 0:14:45]} (20. Bc3 $14 Qxd1+ 21. Rxd1) 20... Nf6 {[%emt 0:04:05]} (20... Rb8 $1 $11 {remains equal.}) 21. Qxc4 {[%emt 0:09:28]} Qxd6 {[%emt 0:09:06]} 22. Qh4 $18 {[%emt 0:06:25]} Qf8 {[%emt 0:21:16]} 23. g4 {[%emt 0:07:19]} Nxg4 {[%emt 0:04:27]} 24. Qh7# {[%emt 0:00:12]} 1-0

[Event "Austrian Championship 2022"]
[Site "Vienna"]
[Date "2022.08.15"]
[Round "4.5"]
[White "Menezes, Christoph"]
[Black "Sadilek, Peter"]
[Result "1-0"]
[ECO "E60"]
[WhiteElo "2417"]
[BlackElo "2330"]
[Annotator "TA"]
[PlyCount "109"]
[EventDate "2022.08.12"]
[EventType "swiss"]
[EventCountry "AUT"]
[SourceTitle "playchess.com"]
[Source "ChessBase"]
[SourceQuality "1"]
[TimeControl "40/5400+30:1800+30"]

{[%evp 18,109,33,23,35,3,39,0,0,0,7,-6,31,25,48,41,60,38,43,31,84,72,97,86,85,52,65,56,62,62,74,73,61,53,93,87,90,58,127,94,85,78,93,104,88,100,106,103,102,0,89,74,85,85,92,81,97,69,77,43,87,85,152,154,311,308,314,300,313,305,372,372,350,325,316,308,429,417,510,510,497,493,465,445,445,445,935,893,985,970,3007,1563,29973,6125]} 1. Nf3 {[%emt 0:00:05]} Nf6 {[%emt 0:07:25]} 2. c4 {[%emt 0:00:30]} g6 {[%emt 0:02:33]} 3. d4 {[%emt 0:01:50]} Bg7 {[%emt 0:01:01]} 4. g3 {[%emt 0:00:50]} c5 {[%emt 0:03:19]} 5. d5 {[%emt 0:02:55]} b5 {[%emt 0:01:22]} 6. cxb5 {[%emt 0:02:44]} a6 {[%emt 0:01:28]} 7. bxa6 {[%emt 0:01:05]} d6 {[%emt 0:00:17]} 8. Nc3 {[%emt 0:00:42]} O-O {[%emt 0:00:48]} 9. Bg2 {[%emt 0:01:51]} Nxa6 {[%emt 0:00:30]} 10. O-O {[%emt 0:01:00]} Bf5 {[%emt 0:03:27] E60: King's Indian: Unusual lines and Fianchetto Variation without Nc3.} 11. Nh4 {[%emt 0:03:57]} Bd7 {[%emt 0:04:22]} 12. Rb1 {[%emt 0:04:34]} Qb6 {[%emt 0:12:53] The position is equal.} 13. h3 {[%emt 0:14:16]} Nc7 {[%emt 0:02:40] [#]} 14. Bd2 $146 {[%emt 0:04:41]} ({Predecessor:} 14. b4 cxb4 15. a3 Qc5 16. axb4 Qxc3 17. Bb2 Qc4 18. Rc1 Qxb4 19. Bxf6 Bxf6 20. Rxc7 {½-½ (111) Rios,C (2530)-Garcia Cuenca,V (2359) Linares 2019}) 14... Qb7 {[%emt 0:02:38][%cal Rf6d5]} 15. e4 {[%emt 0:04:50]} Qc8 {[%emt 0:14:19]} 16. Kh2 {[%emt 0:05:58]} Nb5 {[%emt 0:01:01]} 17. Ra1 {[%emt 0:06:54]} Ne8 {[%emt 0:14:19]} 18. Qc1 {[%emt 0:01:20]} Nxc3 {[%emt 0:05:42]} ({Black should try} 18... Nd4 $14) 19. Bxc3 $16 {[%emt 0:00:50]} Bxc3 {[%emt 0:00:05]} 20. Qxc3 {[%emt 0:00:30]} (20. bxc3 Ra4 $11) 20... Nc7 {[%emt 0:00:05]} 21. Nf3 {[%emt 0:09:34] White is more active.} Ra4 {[%emt 0:01:23]} 22. Qe3 {[%emt 0:05:04]} f6 {[%emt 0:03:33]} 23. a3 {[%emt 0:05:03]} Qa6 {[%emt 0:02:30]} 24. h4 {[%emt 0:02:23]} Bg4 {[%emt 0:06:02]} 25. Nd2 {[%emt 0:01:33]} Rd4 {[%emt 0:01:12]} 26. f3 {[%emt 0:02:24]} Bd7 {[%emt 0:00:26]} 27. Rfc1 {[%emt 0:02:48][%cal Ob2b4]} Rb8 {[%emt 0:01:50]} (27... Qd3 $14 28. Nc4 Qxe3 29. Nxe3 f5) 28. b4 {[%emt 0:05:43] aiming for Bf1.} Rd3 {[%emt 0:01:47]} 29. Qe1 {[%emt 0:01:53] And now Bf1 would win.} Rxa3 {[%emt 0:00:49]} 30. Rxa3 {[%emt 0:01:21]} Qxa3 {[%emt 0:00:01]} 31. bxc5 {[%emt 0:00:20]} dxc5 {[%emt 0:00:08]} 32. Ra1 {[%emt 0:01:52]} Qc3 {[%emt 0:00:58]} 33. Rc1 {[%emt 0:02:15]} (33. Ra7 $16 Rc8 34. Rb7) 33... Qd4 {[%emt 0:02:06]} (33... Qa3 $1 $11) 34. Rc4 {[%emt 0:01:54]} Qd3 {[%emt 0:00:11]} 35. Rxc5 {[%emt 0:00:37]} Nb5 {[%emt 0:01:20]} 36. Qc1 $36 {[%emt 0:01:29][%mdl 2048] White is really pushing.} Ra8 {[%emt 0:03:26] Strongly threatening ...Ra2.} 37. Qc2 {[%emt 0:00:43] Inhibits Ra2.} ({Inferior is} 37. Bf1 Qd4 38. Bxb5 Qf2+ 39. Kh1 Bh3 $19) 37... Qe2 {[%emt 0:00:25] Hoping for ...Nd4.} 38. Nf1 {[%emt 0:00:14]} (38. Rc4 $5 {[%cal Rd2b3]}) 38... Qe1 {[%emt 0:00:33]} 39. Qb2 {[%emt 0:00:28] Prevents Nd4.} Nd6 {[%emt 0:00:35] [#]} ({Better is} 39... Kf8) 40. Rc7 $1 {[%emt 0:00:37][%cal Bc5c7,Bc7e7,Be7e6,Be6b6][%mdl 32]} Bb5 {[%emt 0:00:28] [#] Black cannot hold the game after this.} (40... Rd8 $16 41. Qb6 Kf8) 41. Rxe7 $1 $18 {[%emt 0:03:19][%cal Ob2f6]} Qa1 {[%emt 0:01:28]} 42. Qxa1 {[%emt 0:02:01]} Rxa1 {[%emt 0:00:04]} 43. Ne3 {[%emt 0:00:06]} Ra2 {[%emt 0:03:05]} 44. Re6 {[%emt 0:02:35][%csl LRd6,LRf6]} Nf7 {[%emt 0:00:06]} 45. Rb6 {[%emt 0:01:48]} Be2 {[%emt 0:00:29]} 46. f4 {[%emt 0:05:01]} ({Don't take} 46. Rxf6 Kg7 $18) 46... Nh6 {[%emt 0:08:43]} 47. Kg1 {[%emt 0:04:57]} Ra1+ {[%emt 0:00:27]} 48. Kf2 {[%emt 0:00:26]} Ra2 {[%emt 0:00:03]} 49. Ke1 {[%emt 0:00:42] d6 is the strong threat.} ({Weaker is} 49. Rb8+ Kf7 50. Ke1 Ba6 $18) 49... Ng4 {[%emt 0:10:18]} 50. Nxg4 {[%emt 0:01:48]} Bxg4 {[%emt 0:00:02]} 51. Bf1 {[%emt 0:00:07]} Bf3 {[%emt 0:01:04]} (51... Ra4 $142 52. Bd3 Bf3) 52. d6 {[%emt 0:04:09][%cal Bd5d6,Bd6d7][%mdl 32]} Ra1+ {[%emt 0:03:55]} 53. Kf2 {[%emt 0:00:15]} Bxe4 {[%emt 0:00:29]} 54. d7 {[%emt 0:00:13]} Ra8 {[%emt 0:00:05]} 55. Re6 {[%emt 0:00:10] Weighted Error Value: White=0.13 (very precise) /Black=0.40} 1-0

[Event "Austrian Championship 2022"]
[Site "Vienna"]
[Date "2022.08.15"]
[Round "4.5"]
[White "Jethan, Martin"]
[Black "Mayrhuber, Tobias"]
[Result "1/2-1/2"]
[ECO "D36"]
[WhiteElo "2103"]
[BlackElo "2010"]
[Annotator "TA"]
[PlyCount "158"]
[EventDate "2022.08.12"]
[EventType "swiss"]
[EventCountry "AUT"]
[SourceTitle "playchess.com"]
[Source "ChessBase"]
[SourceQuality "1"]
[TimeControl "40/5400+30:1800+30"]

{[%evp 16,158,29,29,29,3,26,21,22,23,35,16,23,27,22,-27,-40,-79,23,-47,-63,-50,-57,-51,-47,-53,42,41,35,46,119,120,115,113,106,91,106,-164,-110,-159,-75,-80,0,0,0,6,139,2,233,237,285,285,267,270,276,277,275,262,256,256,265,265,237,206,206,206,206,206,206,207,488,492,608,606,552,191,179,178,178,178,178,178,178,178,178,170,170,170,170,170,170,0,170,170,170,170,170,170,170,170,170,168,170,170,170,170,170,170,170,170,170,170,170,170,170,170,170,170,170,170,170,170,170,128,135,0,170,168,170,168,170,168,161,21,21,21,21,21,21,21,21,12,21,21,21]} 1. d4 {[%emt 0:00:02]} d5 {[%emt 0:00:08]} 2. c4 {[%emt 0:00:08]} e6 {[%emt 0:00:08]} 3. Nc3 {[%emt 0:00:05]} Nf6 {[%emt 0:00:21]} 4. cxd5 {[%emt 0:00:19]} exd5 {[%emt 0:00:07]} 5. Bg5 {[%emt 0:00:06]} Be7 {[%emt 0:00:15]} 6. e3 {[%emt 0:00:35]} c6 {[%emt 0:00:28]} 7. Qc2 {[%emt 0:01:21]} O-O {[%emt 0:00:42]} 8. Bd3 {[%emt 0:00:18]} h6 {[%emt 0:02:13]} 9. Bf4 {[%emt 0:03:50]} Re8 {[%emt 0:07:00] D36: Queen's Gambit Declined: Exchange Variation: Main line (5 Bg5 c6 6 Qc2).} 10. h3 {[%emt 0:08:01]} Bd6 {[%emt 0:03:38]} 11. Nge2 {[%emt 0:00:21]} Bxf4 {[%emt 0:00:57]} 12. Nxf4 {[%emt 0:00:09]} Qd6 {[%emt 0:01:31] White must now prevent ...Qxf4.} 13. O-O-O {[%emt 0:06:48]} b5 {[%emt 0:06:45][%cal Bb7b5,Bb5b4][%mdl 32]} 14. g4 {[%emt 0:03:28]} Na6 {[%emt 0:04:40][%cal Bb8a6,Ba6b4,Bb4a2][%mdl 32]} 15. Qe2 {[%emt 0:03:07]} (15. Qd2 {is superior.}) 15... Nb4 $11 {[%emt 0:03:21]} 16. Bb1 {[%emt 0:02:05] [#]} Bd7 $146 {[%emt 0:07:51]} (16... Nxa2+ $1 $17 17. Bxa2 b4) ({Predecessor:} 16... Nxa2+ 17. Nxa2 Qxf4 18. Qc2 Qf3 19. Nb4 Ne4 20. Rdf1 a5 21. Nd3 a4 22. Ne5 Rxe5 23. dxe5 {1-0 (57) Zachej,A (1742)-Grund,W (1897) Muensterland 2003}) 17. Rhg1 {[%emt 0:10:23] [#]} (17. a3 a5 $11) (17. Qf3 $11) 17... Nxa2+ $1 $15 {[%emt 0:11:36]} 18. Bxa2 {[%emt 0:08:13] aiming for Qf3.} b4 {[%emt 0:00:08]} 19. Na4 {[%emt 0:03:55] [#]} ({But not} 19. g5 $2 hxg5 20. Na4 (20. Rxg5 $2 bxc3 21. Rdg1 Qxf4 $19) 20... gxf4 $19) 19... Qxf4 {[%emt 0:06:01]} 20. Nc5 {[%emt 0:01:37]} Qd6 {[%emt 0:02:18]} (20... Bc8 $1 $15) 21. g5 $14 {[%emt 0:03:39]} hxg5 {[%emt 0:00:20]} 22. Rxg5 {[%emt 0:00:13]} Ne4 {[%emt 0:01:42]} ({Weaker is} 22... Bxh3 23. Rdg1 g6 24. Bb1 $16) ({Black should play} 22... Nh7 $14 23. Rg3 Bf5) 23. Nxe4 $16 {[%emt 0:01:15]} Rxe4 {[%emt 0:01:20]} 24. Rdg1 $1 {[%emt 0:05:58]} g6 {[%emt 0:10:31]} 25. Bb1 {[%emt 0:00:52]} Re6 {[%emt 0:00:55]} 26. Qf3 $2 {[%emt 0:14:32][%mdl 8192]} (26. h4 $1 $16 {[%cal Rh4h5] is forced if you want to stay better. Strongly threatening h5.} c5 27. h5 cxd4 28. hxg6 Qc5+ 29. Bc2) 26... Rc8 {[%emt 0:03:03]} ({Better is} 26... Rf6 $19 27. Qg2 (27. Qh5 $2 Kg7 $19) 27... Rc8) 27. Kd1 {[%emt 0:02:48]} (27. Rf5 $142 c5 28. Rxf7 cxd4+ 29. Kd2 dxe3+ 30. fxe3) 27... c5 {[%emt 0:02:43]} (27... Rf6 $142 28. Qg2 c5 29. Qxd5 Ba4+ 30. Ke2 Bb5+ 31. Bd3 Qa6 32. Rxg6+ (32. Bxb5 $2 Qxb5+ 33. Ke1 Qd3 $17) 32... Rxg6 33. Rxg6+ Qxg6 34. Bxb5 cxd4) 28. Qxd5 $17 {[%emt 0:01:57][%cal Og5g6]} Ba4+ {[%emt 0:04:34]} (28... Kf8 $17) 29. Kd2 {[%emt 0:03:13][%cal Og5g6]} Qxd5 {[%emt 0:00:22]} 30. Rxd5 {[%emt 0:00:07] Threatens to win with Bf5.} cxd4 {[%emt 0:01:14]} (30... Rec6 $11 {remains equal.}) 31. Rxd4 {[%emt 0:01:13]} ({White must play} 31. Bf5 $1 $16 {[%cal Rf5e6]}) 31... a5 $2 {[%emt 0:05:35]} (31... Rc5 $11 {and Black is okay.}) 32. Bf5 $1 $18 {[%emt 0:02:02]} Rec6 {[%emt 0:04:36][%cal Oc6c2]} 33. Bxc8 {[%emt 0:00:25]} Rc2+ {[%emt 0:00:06]} 34. Kd3 {[%emt 0:00:49]} Rxc8 {[%emt 0:00:07][%mdl 4096] Endgame KRR-KRB} 35. Rg5 {[%emt 0:02:46]} Bc2+ {[%emt 0:01:13]} 36. Kd2 {[%emt 0:00:16]} Bf5 {[%emt 0:03:10]} 37. e4 {[%emt 0:01:05]} Bxh3 {[%emt 0:00:34]} 38. Rxa5 {[%emt 0:00:04]} b3 {[%emt 0:00:21]} 39. Rd3 {[%emt 0:01:37]} Rc2+ {[%emt 0:00:35] [#]} 40. Ke1 $1 {[%emt 0:03:22]} Rc1+ {[%emt 0:03:58] [#]} 41. Rd1 $1 {[%emt 0:34:23]} Rc4 {[%emt 0:32:20]} 42. f3 {[%emt 0:00:00]} Bg2 $2 {[%emt 0:00:00]} (42... Be6 {keeps fighting.} 43. Ke2 Rc2+ 44. Rd2 Rc1) 43. Rd3 {[%emt 0:00:00]} Rc1+ {[%emt 0:00:00]} 44. Kf2 {[%emt 0:00:00]} Rc2+ {[%emt 0:00:00]} 45. Ke3 $2 {[%emt 0:00:00]} (45. Kg3) 45... Rxb2 {[%emt 0:00:00]} 46. Ra8+ {[%emt 0:00:00]} Kg7 {[%emt 0:00:00]} 47. Rb8 {[%emt 0:00:00]} Bh3 {[%emt 0:00:00]} 48. Rdxb3 {[%emt 0:00:00]} Ra2 {[%emt 0:00:00]} 49. R8b6 {[%emt 0:00:00]} Be6 {[%emt 0:00:00]} 50. Rc3 {[%emt 0:00:00]} Ra5 {[%emt 0:00:00]} 51. f4 {[%emt 0:00:00]} Kf6 {[%emt 0:00:00]} 52. Kf3 {[%emt 0:00:00]} Rh5 {[%emt 0:00:00] Hoping for ...Rh3+.} 53. Ke3 {[%emt 0:00:00]} Ra5 $1 {[%emt 0:00:00]} 54. Rbc6 {[%emt 0:00:00]} Rb5 {[%emt 0:00:00]} 55. R6c5 {[%emt 0:00:00]} Rb1 {[%emt 0:00:00]} 56. Kf2 {[%emt 0:00:00] Inhibits Re1.} Rb4 {[%emt 0:00:00]} 57. Kf3 {[%emt 0:00:00]} Rb1 {[%emt 0:00:00]} 58. Rc2 {[%emt 0:01:44]} Rb3+ {[%emt 0:00:00]} 59. R5c3 {[%emt 0:00:42]} Rb5 {[%emt 0:00:00]} 60. Rc1 {[%emt 0:00:17]} Ra5 {[%emt 0:00:00]} 61. Rd3 {[%emt 0:00:19]} Rb5 {[%emt 0:00:00]} 62. Ra1 {[%emt 0:01:50]} Rh5 {[%emt 0:00:00]} 63. Ke3 {[%emt 0:00:33]} Rh3+ {[%emt 0:00:00]} 64. Kd4 {[%emt 0:01:23] Rxh3 is the strong threat.} Rh5 {[%emt 0:13:03]} 65. Rf1 {[%emt 0:01:37]} Ra5 {[%emt 0:00:00]} 66. Rh1 {[%emt 0:00:14]} Ra4+ {[%emt 0:00:00]} 67. Ke3 {[%emt 0:00:05]} Kg7 {[%emt 0:00:00]} 68. Rh2 {[%emt 0:01:08]} Ra1 {[%emt 0:00:00]} 69. Kd4 {[%emt 0:00:36]} Ra4+ {[%emt 0:00:00]} 70. Ke3 {[%emt 0:00:48]} Ra1 $1 {[%emt 0:00:00]} 71. Rc3 {[%emt 0:00:12]} Re1+ {[%emt 0:00:00]} 72. Kd4 {[%emt 0:00:13]} Ra1 {[%emt 0:00:00]} 73. Rc5 {[%emt 0:01:29]} Kf6 {[%emt 0:00:00]} 74. f5 {[%emt 0:01:07]} (74. Rc6 $18) 74... Rd1+ {[%emt 0:00:00] The position is equal.} 75. Ke3 {[%emt 0:00:14]} gxf5 {[%emt 0:00:00]} 76. exf5 {[%emt 0:00:10]} Bxf5 {[%emt 0:06:00]} 77. Rf2 {[%emt 0:00:16]} Re1+ {[%emt 0:00:00]} 78. Kd4 {[%emt 0:02:51]} Re4+ {[%emt 0:00:00]} 79. Kc3 {[%emt 0:00:36]} Re5 {[%emt 0:00:00] Black defended with fortune.  Weighted Error Value: White=0.26 (precise) /Black=0.32} 1/2-1/2